fUST/lending_fUST_20260117
["ID","MTS","AMOUNT","RATE_DAILY","PERIOD"]
[402271974,1768641053821,-980.65,0.00016999,3]
[402271976,1768641053833,-325.21716664,0.00016999,3]
[402271979,1768641053844,-1054.42,0.00016999,3]
[402271981,1768641053855,-1098.82,0.00016999,3]
[402271983,1768641053867,-643.98345217,0.00016999,3]
[402271985,1768641053879,-500.0,0.00016999,3]
[402271987,1768641053891,-500.3248332,0.00016999,3]
[402271990,1768641053903,-500.0,0.00016999,3]
[402271992,1768641053914,-501.17354468,0.00016999,3]
[402271994,1768641053926,-500.0,0.00016999,3]
[402271996,1768641053937,-500.0,0.00016999,3]
[402271998,1768641053948,-500.0,0.00016999,3]
[402272001,1768641053961,-500.0,0.00016999,3]
[402272003,1768641053972,-500.0,0.00016999,3]
[402272005,1768641053984,-500.0,0.00016999,3]
[402272007,1768641053995,-500.0,0.00016999,3]
[402272009,1768641054006,-500.0,0.00016999,3]
[402272012,1768641054018,-500.0,0.00016999,3]
[402272014,1768641054030,-500.0,0.00016999,3]
[402272016,1768641054041,-611.38,0.00016999,3]
[402272018,1768641054052,-544.53494198,0.00016999,3]
[402272020,1768641054065,-523.8,0.00016999,3]
[402272023,1768641054076,-500.0,0.00016999,3]
[402272025,1768641054089,-500.0,0.00016999,3]
[402272027,1768641054101,-500.0,0.00016999,3]
[402272029,1768641054112,-500.92721642,0.00016999,3]
[402272032,1768641054124,-500.0,0.00016999,3]
[402272034,1768641054136,-225.94247433,0.00016999,3]
[402272036,1768641054147,-500.0,0.00016999,3]
[402272038,1768641054159,-500.0,0.00016999,3]
[402272040,1768641054171,-500.0,0.00016999,2]
[402272043,1768641054183,-500.0,0.00016999,2]
[402272045,1768641054195,-504.02216576,0.00016999,3]
[402272047,1768641054207,-500.0,0.00016999,3]
[402272050,1768641054220,-863.18,0.00016999,3]
[402272052,1768641054231,-500.0,0.00016999,2]
[402272054,1768641054243,-1864.45,0.00016999,3]
[402272056,1768641054255,-500.0,0.00016999,3]
[402272058,1768641054267,-500.0,0.00016999,3]
[402272061,1768641054278,-500.0,0.00016999,3]
[402272063,1768641054289,-875.55,0.00016999,3]
[402272065,1768641054300,-500.0,0.00016999,3]
[402272067,1768641054311,-613.24737358,0.00016999,3]
[402272069,1768641054322,-500.0,0.00016999,3]
[402272071,1768641054334,-500.0,0.00016999,3]
[402272073,1768641054345,-500.0,0.00016999,3]
[402272076,1768641054357,-500.0,0.00016999,3]
[402272078,1768641054367,-503.22,0.00016999,3]
[402272080,1768641054378,-500.0,0.00016999,3]
[402272082,1768641054390,-469.18172049,0.00016999,3]
[402272085,1768641054402,-500.0,0.00016999,3]
[402272087,1768641054413,-500.0,0.00016999,3]
[402272089,1768641054424,-500.0,0.00016999,3]
[402272091,1768641054435,-500.0,0.00016999,3]
[402272093,1768641054446,-509.99937096,0.00016999,3]
[402272095,1768641054457,-500.0,0.00016999,3]
[402272098,1768641054469,-500.0,0.00016999,3]
[402272100,1768641054480,-500.0,0.00016999,3]
[402272102,1768641054492,-500.0,0.00016999,3]
[402272104,1768641054503,-500.0,0.00016999,3]
[402272106,1768641054515,-1777.27,0.00016999,3]
[402272108,1768641054527,-500.0,0.00016999,3]
[402272111,1768641054539,-508.96,0.00016999,3]
[402272113,1768641054551,-500.0,0.00016999,3]
[402272115,1768641054562,-772.16,0.00016999,3]
[402272117,1768641054574,-500.0,0.00016999,3]
[402272120,1768641054585,-500.0,0.00016999,3]
[402272122,1768641054596,-500.0,0.00016999,3]
[402272124,1768641054609,-478.32257424,0.00016999,3]
[402272126,1768641054620,-500.0,0.00016999,3]
[402272129,1768641054632,-500.0,0.00016999,3]
[402272131,1768641054643,-500.0,0.00016999,3]
[402272133,1768641054655,-564.35,0.00016999,3]
[402272135,1768641054666,-1699.56,0.00016999,3]
[402272137,1768641054678,-643.39,0.00016999,3]
[402272139,1768641054692,-785.13,0.00016999,3]
[402272142,1768641054704,-974.97,0.00016999,3]
[402272144,1768641054716,-500.0,0.00016999,3]
[402272146,1768641054729,-500.0,0.00016999,3]
[402272148,1768641054739,-500.0,0.00016999,3]
[402272150,1768641054754,-500.0,0.00016999,3]
[402272152,1768641054765,-964.42,0.00016999,3]
[402272154,1768641054776,-500.0,0.00016999,3]
[402272157,1768641054788,-716.02,0.00016999,3]
[402272159,1768641054798,-999.91,0.00016999,3]
[402272161,1768641054810,-500.0,0.00016999,3]
[402272163,1768641054834,-612.1,0.00016999,3]
[402272165,1768641054847,-530.71,0.00016999,3]
[402272167,1768641054859,-500.0,0.00016999,3]
[402272170,1768641054871,-1003.52,0.00016999,3]
[402272172,1768641054885,-565.41,0.00016999,3]
[402272174,1768641054896,-500.0,0.00016999,3]
[402272176,1768641054907,-424.34553456,0.00016999,3]
[402272178,1768641054918,-500.0,0.00016999,3]
[402272180,1768641054929,-500.0,0.00016999,3]
[402272183,1768641054940,-979.46,0.00016999,3]
[402272185,1768641054951,-500.0,0.00016999,3]
[402272187,1768641054962,-464.68587701,0.00016999,3]
[402272189,1768641054973,-500.0,0.00016999,3]
[402272191,1768641054984,-741.6,0.00016999,3]
[402272193,1768641054995,-904.31,0.00016999,3]
[402272196,1768641055006,-500.0,0.00016999,3]
[402272198,1768641055018,-500.0,0.00016999,3]
[402272200,1768641055029,-500.0,0.00016999,3]
[402272202,1768641055039,-1000.0,0.00016999,2]
[402272204,1768641055051,-785.77,0.00016999,3]
[402272206,1768641055063,-500.0,0.00016999,3]
[402272209,1768641055075,-953.58,0.00016999,3]
[402272211,1768641055085,-500.0,0.00016999,3]
[402272213,1768641055096,-557.26,0.00016999,3]
[402272215,1768641055107,-505.74293991,0.00016999,3]
[402272217,1768641055119,-510.56,0.00016999,3]
[402272220,1768641055130,-500.0,0.00016999,3]
[402272222,1768641055141,-500.0,0.00016999,3]
[402272224,1768641055152,-500.0,0.00016999,3]
[402272226,1768641055163,-500.0,0.00016999,3]
[402272228,1768641055175,-500.0,0.00016999,3]
[402272230,1768641055186,-1289.75,0.00016999,3]
[402272233,1768641055197,-1594.46,0.00016999,3]
[402272235,1768641055209,-535.73,0.00016999,3]
[402272237,1768641055221,-500.0,0.00016999,3]
[402272239,1768641055231,-500.0,0.00016999,3]
[402272241,1768641055243,-500.0,0.00016999,3]
[402272243,1768641055253,-500.0,0.00016999,3]
[402272246,1768641055266,-500.0,0.00016999,3]
[402272248,1768641055277,-500.0,0.00016999,3]
[402272250,1768641055289,-500.64885102,0.00016999,3]
[402272252,1768641055300,-500.0,0.00016999,3]
[402272254,1768641055311,-500.0,0.00016999,3]
[402272257,1768641055323,-500.0,0.00016999,3]
[402272259,1768641055334,-500.0,0.00016999,3]
[402272261,1768641055345,-500.0,0.00016999,3]
[402272263,1768641055357,-1572.67,0.00016999,3]
[402272266,1768641055369,-500.0,0.00016999,3]
[402272268,1768641055380,-500.0,0.00016999,3]
[402272270,1768641055392,-500.0,0.00016999,3]
[402272272,1768641055404,-500.0,0.00016999,3]
[402272274,1768641055414,-711.39,0.00016999,3]
[402272277,1768641055425,-500.0,0.00016999,3]
[402272279,1768641055436,-500.0,0.00016999,3]
[402272281,1768641055448,-500.0,0.00016999,3]
[402272283,1768641055459,-500.0,0.00016999,3]
[402272285,1768641055471,-500.0,0.00016999,3]
[402272288,1768641055482,-500.0,0.00016999,3]
[402272290,1768641055493,-754.88,0.00016999,3]
[402272292,1768641055502,-567.66,0.00016999,3]
[402272294,1768641055512,-818.82,0.00016999,3]
[402272296,1768641055521,-500.0,0.00016999,3]
[402272298,1768641055531,-500.0,0.00016999,3]
[402272300,1768641055540,-500.0,0.00016999,3]
[402272302,1768641055549,-500.0,0.00016999,3]
[402272334,1768641055939,-500.0,0.00016999,3]
[402272339,1768641055976,-500.0,0.00016999,3]
[402272342,1768641056000,-500.0,0.00016999,3]
[402272344,1768641056009,-884.9,0.00016999,3]
[402272346,1768641056019,-481.66318474,0.00016999,3]
[402272348,1768641056029,-677.43,0.00016999,3]
[402272350,1768641056038,-943.83,0.00016999,3]
[402272352,1768641056047,-500.0,0.00016999,3]
[402272354,1768641056057,-1038.9,0.00016999,3]
[402272356,1768641056074,-500.0,0.00016999,3]
[402272358,1768641056094,-500.0,0.00016999,3]
[402272360,1768641056105,-500.0,0.00016999,3]
[402272362,1768641056115,-500.0,0.00016999,3]
[402272364,1768641056124,-500.0,0.00016999,3]
[402272366,1768641056134,-500.0,0.00016999,3]
[402272368,1768641056144,-913.08,0.00016999,3]
[402272370,1768641056153,-281.96847602,0.00016999,3]
[402272372,1768641056164,-500.0,0.00016999,3]
[402272374,1768641056174,-500.0,0.00016999,3]
[402272376,1768641056183,-500.0,0.00016999,3]
[402272378,1768641056192,-500.0,0.00016999,3]
[402272380,1768641056202,-500.0,0.00016999,3]
[402272383,1768641056212,-1121.7,0.00016999,3]
[402272385,1768641056221,-500.0,0.00016999,3]
[402272387,1768641056230,-744.56,0.00016999,3]
[402272389,1768641056240,-1342.39,0.00016999,3]
[402272391,1768641056249,-500.0,0.00016999,3]
[402272393,1768641056258,-500.0,0.00016999,3]
[402272395,1768641056267,-1834.58,0.00016999,3]
[402272397,1768641056276,-648.04,0.00016999,3]
[402272399,1768641056285,-500.0,0.00016999,3]
[402272401,1768641056294,-500.07551483,0.00016999,3]
[402272403,1768641056303,-500.0,0.00016999,3]
[402272405,1768641056312,-500.0,0.00016999,3]
[402272407,1768641056322,-500.0,0.00016999,3]
[402272409,1768641056331,-500.0,0.00016999,3]
[402272411,1768641056339,-797.95,0.00016999,3]
[402272413,1768641056348,-500.0,0.00016999,3]
[402272414,1768641056358,-500.0,0.00016999,3]
[402272417,1768641056368,-500.0,0.00016999,3]
[402272418,1768641056379,-500.0,0.00016999,3]
[402272421,1768641056388,-540.01468021,0.00016999,3]
[402272423,1768641056398,-500.0,0.00016999,3]
[402272424,1768641056407,-500.0,0.00016999,3]
[402272426,1768641056416,-500.0,0.00016999,3]
[402272429,1768641056425,-500.0,0.00016999,3]
[402272430,1768641056435,-500.0,0.00016999,3]
[402272433,1768641056444,-500.0,0.00016999,3]
[402272435,1768641056453,-519.01,0.00016999,3]
[402272436,1768641056462,-500.0,0.00016999,3]
[402272438,1768641056471,-500.0,0.00016999,3]
[402272440,1768641056480,-540.84,0.00016999,3]
[402272443,1768641056490,-500.0,0.00016999,3]
[402272444,1768641056499,-500.0,0.00016999,3]
[402272446,1768641056508,-500.0,0.00016999,3]
[402272448,1768641056517,-500.0,0.00016999,3]
[402272451,1768641056526,-500.0,0.00016999,3]
[402272452,1768641056535,-554.44,0.00016999,3]
[402272454,1768641056545,-1359.96,0.00016999,3]
[402272457,1768641056557,-942.63,0.00016999,3]
[402272459,1768641056567,-500.0,0.00016999,3]
[402272461,1768641056576,-500.0,0.00016999,2]
[402272462,1768641056585,-500.0,0.00016999,3]
[402272465,1768641056595,-500.0,0.00016999,3]
[402272467,1768641056604,-500.0,0.00016999,3]
[402272469,1768641056614,-500.0,0.00016999,3]
[402272471,1768641056624,-500.0,0.00016999,3]
[402272473,1768641056633,-693.7,0.00016999,3]
[402272475,1768641056642,-1472.9,0.00016999,3]
[402272476,1768641056651,-500.0,0.00016999,3]
[402272479,1768641056661,-582.22,0.00016999,3]
[402272481,1768641056670,-1568.17,0.00016999,3]
[402272482,1768641056680,-500.0,0.00016999,3]
[402272484,1768641056689,-500.0,0.00016999,3]
[402272486,1768641056698,-500.0,0.00016999,3]
[402272489,1768641056708,-500.0,0.00016999,3]
[402272491,1768641056717,-500.0,0.00016999,3]
[402272492,1768641056727,-500.0,0.00016999,3]
[402272495,1768641056739,-500.0,0.00016999,3]
[402272497,1768641056749,-500.0,0.00016999,3]
[402272498,1768641056758,-500.0,0.00016999,3]
[402272501,1768641056768,-781.61,0.00016999,3]
[402272502,1768641056777,-500.0,0.00016999,3]
[402272504,1768641056787,-500.0,0.00016999,3]
[402272507,1768641056797,-931.1,0.00016999,3]
[402272508,1768641056807,-628.44,0.00016999,3]
[402272511,1768641056818,-500.0,0.00016999,3]
[402272513,1768641056833,-500.0,0.00016999,3]
[402272514,1768641056843,-842.12,0.00016999,3]
[402272516,1768641056853,-1251.31,0.00016999,3]
[402272519,1768641056863,-500.0,0.00016999,3]
[402272520,1768641056872,-500.0,0.00016999,3]
[402272522,1768641056881,-526.17897158,0.00016999,3]
[402272524,1768641056891,-60000.0,0.00017,2]
[402272526,1768641056904,-1000.0,0.00017,2]
[402272529,1768641056913,-356.0,0.00017002,2]
[402272530,1768641056928,-252.4,0.00017012,2]
[402272532,1768641056937,-1000.0,0.00017108,2]
[402272534,1768641056946,-12944.70800458,0.0001716,2]
[402272536,1768641056955,-432.0,0.00017168,2]
[402272538,1768641056964,-520.22,0.0001726,3]
[402272541,1768641056974,-818.49,0.0001726,3]
[402272543,1768641056985,-977.67,0.0001726,3]
[402272545,1768641056996,-727.95,0.0001726,3]
[402272547,1768641057005,-619.01,0.0001726,3]
[402272548,1768641057014,-500.0,0.0001726,3]
[402272550,1768641057024,-500.0,0.0001726,3]
[402272552,1768641057033,-500.0,0.0001726,3]
[402272554,1768641057042,-500.0,0.0001726,3]
[402272557,1768641057051,-500.0,0.0001726,3]
[402272559,1768641057061,-500.0,0.0001726,3]
[402272561,1768641057070,-500.0,0.0001726,3]
[402272562,1768641057079,-944.2,0.0001726,3]
[402272564,1768641057089,-774.73,0.0001726,3]
[402272566,1768641057098,-630.85,0.0001726,3]
[402272569,1768641057107,-1581.13,0.0001726,3]
[402272571,1768641057115,-500.0,0.0001726,3]
[402272573,1768641057124,-500.0,0.0001726,3]
[402272575,1768641057133,-500.0,0.0001726,3]
[402272577,1768641057142,-771.05,0.0001726,3]
[402272578,1768641057151,-500.0,0.0001726,2]
[402272581,1768641057160,-499.99622273,0.0001726,3]
[402272583,1768641057169,-500.0,0.0001726,3]
[402272585,1768641057179,-1076.17,0.0001726,3]
[402272587,1768641057188,-523.35,0.0001726,3]
[402272589,1768641057196,-1132.82,0.0001726,3]
[402272590,1768641057206,-563.8,0.0001726,3]
[402272593,1768641057215,-500.0,0.0001726,3]
[402272594,1768641057225,-500.0,0.0001726,3]
[402272596,1768641057234,-1366.17,0.0001726,3]
[402272598,1768641057243,-535.22,0.0001726,3]
[402272601,1768641057252,-626.22,0.0001726,3]
[402272603,1768641057261,-598.93,0.0001726,3]
[402272605,1768641057270,-500.0,0.0001726,3]
[402272607,1768641057279,-500.0,0.0001726,3]
[402272608,1768641057288,-500.0,0.0001726,3]
[402272610,1768641057297,-500.0,0.0001726,3]
[402272612,1768641057307,-1016.59,0.0001726,3]
[402272615,1768641057316,-500.0,0.0001726,3]
[402272617,1768641057325,-1254.59,0.0001726,3]
[402272619,1768641057334,-500.0,0.0001726,2]
[402272621,1768641057344,-500.0,0.0001726,2]
[402272623,1768641057353,-500.0,0.0001726,3]
[402272625,1768641057362,-2006.9,0.0001726,3]
[402272627,1768641057371,-500.0,0.0001726,3]
[402272629,1768641057380,-500.0,0.0001726,3]
[402272631,1768641057389,-500.0,0.0001726,3]
[402272633,1768641057399,-500.0,0.0001726,3]
[402272635,1768641057408,-500.0,0.0001726,3]
[402272637,1768641057418,-500.0,0.0001726,3]
[402272639,1768641057427,-500.0,0.0001726,3]
[402272641,1768641057436,-500.0,0.0001726,3]
[402272643,1768641057446,-500.0,0.0001726,3]
[402272645,1768641057456,-526.57336217,0.0001726,3]
[402272647,1768641057465,-500.0,0.0001726,3]
[402272649,1768641057475,-500.0,0.0001726,3]
[402272651,1768641057484,-2338.27,0.0001726,3]
[402272653,1768641057493,-500.0,0.0001726,3]
[402272655,1768641057502,-939.95,0.0001726,3]
[402272657,1768641057512,-1016.13,0.0001726,3]
[402272659,1768641057521,-500.0,0.0001726,3]
[402272661,1768641057531,-587.21,0.0001726,3]
[402272663,1768641057540,-500.0,0.0001726,3]
[402272665,1768641057551,-1859.94,0.0001726,3]
[402272667,1768641057560,-500.0,0.0001726,3]
[402272669,1768641057569,-500.0,0.0001726,3]
[402272671,1768641057578,-816.49,0.0001726,3]
[402272673,1768641057587,-500.0,0.0001726,3]
[402272675,1768641057596,-500.0,0.0001726,3]
[402272677,1768641057606,-500.0,0.0001726,3]
[402272679,1768641057615,-500.0,0.0001726,3]
[402272681,1768641057624,-1586.94,0.0001726,3]
[402272683,1768641057633,-500.0,0.0001726,3]
[402272685,1768641057643,-595.44134723,0.0001726,3]
[402272687,1768641057652,-500.0,0.0001726,3]
[402272690,1768641057663,-500.0,0.0001726,3]
[402272692,1768641057672,-1210.81,0.0001726,3]
[402272694,1768641057683,-775.14,0.0001726,3]
[402272696,1768641057691,-960.56,0.0001726,3]
[402272698,1768641057700,-500.0,0.0001726,3]
[402272700,1768641057710,-1441.58,0.0001726,3]
[402272702,1768641057719,-500.0,0.0001726,3]
[402272704,1768641057727,-500.0,0.0001726,3]
[402272706,1768641057737,-500.0,0.0001726,3]
[402272708,1768641057746,-500.0,0.0001726,3]
[402272710,1768641057757,-2140.55,0.0001726,3]
[402272712,1768641057766,-2007.96,0.0001726,3]
[402272714,1768641057775,-790.89,0.0001726,3]
[402272716,1768641057784,-1776.82,0.0001726,3]
[402272718,1768641057793,-740.56,0.0001726,3]
[402272720,1768641057803,-500.0,0.0001726,3]
[402272722,1768641057814,-500.0,0.0001726,3]
[402272724,1768641057827,-915.36,0.0001726,3]
[402272726,1768641057836,-500.0,0.0001726,3]
[402272728,1768641057846,-500.0,0.0001726,3]
[402272730,1768641057855,-500.0,0.0001726,3]
[402272732,1768641057865,-706.91,0.0001726,3]
[402272734,1768641057874,-500.0,0.0001726,3]
[402272736,1768641057883,-596.56227807,0.0001726,3]
[402272738,1768641057893,-500.0,0.0001726,3]
[402272740,1768641057903,-905.9,0.0001726,3]
[402272743,1768641057913,-500.0,0.0001726,3]
[402272745,1768641057922,-1036.96,0.0001726,3]
[402272746,1768641057932,-923.41,0.0001726,3]
[402272748,1768641057945,-500.0,0.0001726,3]
[402272751,1768641057955,-500.0,0.0001726,3]
[402272753,1768641057965,-500.0,0.0001726,3]
[402272755,1768641057974,-500.0,0.0001726,3]
[402272757,1768641057984,-850.25,0.0001726,3]
[402272759,1768641057993,-1509.89,0.0001726,3]
[402272761,1768641058004,-569.47706073,0.0001726,3]
[402272763,1768641058013,-500.0,0.0001726,3]
[402272765,1768641058023,-500.0,0.0001726,3]
[402272767,1768641058032,-531.74,0.0001726,3]
[402272769,1768641058041,-500.0,0.0001726,3]
[402272771,1768641058051,-1211.41,0.0001726,3]
[402272773,1768641058060,-500.0,0.0001726,3]
[402272775,1768641058069,-823.75,0.0001726,3]
[402272777,1768641058078,-500.0,0.0001726,3]
[402272779,1768641058088,-500.0,0.0001726,3]
[402272781,1768641058097,-500.0,0.0001726,3]
[402272783,1768641058106,-500.0,0.0001726,3]
[402272785,1768641058116,-825.73,0.0001726,3]
[402272787,1768641058125,-500.0,0.0001726,3]
[402272789,1768641058134,-500.0,0.0001726,3]
[402272791,1768641058143,-500.0,0.0001726,3]
[402272793,1768641058153,-1782.4,0.0001726,3]
[402272795,1768641058162,-1517.43,0.0001726,3]
[402272797,1768641058171,-582.69,0.0001726,3]
[402272799,1768641058180,-500.0,0.0001726,3]
[402272801,1768641058189,-574.44,0.0001726,3]
[402272803,1768641058200,-609.64,0.0001726,3]
[402272805,1768641058209,-500.0,0.0001726,3]
[402272807,1768641058220,-1368.93,0.0001726,3]
[402272809,1768641058229,-500.0,0.0001726,3]
[402272811,1768641058239,-2456.62,0.0001726,3]
[402272813,1768641058248,-500.0,0.0001726,3]
[402272815,1768641058257,-540.82,0.0001726,3]
[402272817,1768641058266,-1066.54,0.0001726,3]
[402272819,1768641058275,-500.0,0.0001726,3]
[402272821,1768641058285,-500.0,0.0001726,3]
[402272823,1768641058294,-1184.11,0.0001726,3]
[402272825,1768641058304,-1759.84,0.0001726,3]
[402272827,1768641058313,-500.0,0.0001726,3]
[402272829,1768641058322,-500.0,0.0001726,3]
[402272831,1768641058331,-1047.08,0.0001726,3]
[402272833,1768641058341,-1521.4,0.0001726,3]
[402272835,1768641058350,-500.0,0.0001726,3]
[402272837,1768641058359,-1993.96,0.0001726,3]
[402272839,1768641058368,-617.87,0.0001726,3]
[402272841,1768641058377,-500.0,0.0001726,3]
[402272843,1768641058387,-500.0,0.0001726,3]
[402272845,1768641058396,-500.0,0.0001726,3]
[402272847,1768641058405,-2016.32,0.0001726,3]
[402272849,1768641058414,-500.0,0.0001726,3]
[402272851,1768641058423,-500.0,0.0001726,3]
[402272853,1768641058433,-618.83,0.0001726,3]
[402272855,1768641058442,-500.0,0.0001726,3]
[402272857,1768641058452,-500.0,0.0001726,3]
[402272859,1768641058461,-500.0,0.0001726,3]
[402272861,1768641058471,-523.78,0.0001726,3]
[402272863,1768641058480,-500.0,0.0001726,3]
[402272865,1768641058489,-1542.76,0.0001726,3]
[402272867,1768641058499,-500.0,0.0001726,3]
[402272869,1768641058508,-500.0,0.0001726,3]
[402272871,1768641058518,-500.0,0.0001726,3]
[402272873,1768641058526,-500.0,0.0001726,3]
[402272875,1768641058536,-500.0,0.0001726,3]
[402272877,1768641058546,-500.0,0.0001726,3]
[402272879,1768641058555,-500.0,0.0001726,3]
[402272881,1768641058564,-500.0,0.0001726,3]
[402272883,1768641058573,-580.8,0.0001726,3]
[402272885,1768641058582,-500.0,0.0001726,3]
[402272886,1768641058592,-942.19,0.0001726,3]
[402272888,1768641058603,-2703.42,0.0001726,3]
[402272890,1768641058612,-500.0,0.0001726,3]
[402272892,1768641058622,-799.26,0.0001726,3]
[402272894,1768641058633,-500.0,0.0001726,3]
[402272896,1768641058642,-500.0,0.0001726,3]
[402272898,1768641058653,-500.0,0.0001726,3]
[402272900,1768641058663,-500.0,0.0001726,3]
[402272902,1768641058672,-1577.53,0.0001726,3]
[402272904,1768641058682,-1436.74,0.0001726,3]
[402272906,1768641058691,-500.0,0.0001726,3]
[402272908,1768641058700,-500.0,0.0001726,3]
[402272910,1768641058710,-500.0,0.0001726,3]
[402272912,1768641058720,-1613.51,0.0001726,3]
[402272914,1768641058729,-500.0,0.0001726,3]
[402272916,1768641058738,-500.0,0.0001726,3]
[402272918,1768641058747,-500.0,0.0001726,3]
[402272920,1768641058757,-526.65404558,0.0001726,3]
[402272922,1768641058766,-618.91,0.0001726,3]
[402272924,1768641058777,-500.0,0.0001726,3]
[402272926,1768641058786,-1482.88,0.0001726,3]
[402272928,1768641058795,-1911.71,0.0001726,3]
[402272930,1768641058804,-2136.32,0.0001726,3]
[402272932,1768641058813,-500.0,0.0001726,3]
[402272933,1768641058825,-500.0,0.0001726,3]
[402272935,1768641058834,-500.0,0.0001726,3]
[402272937,1768641058843,-645.08,0.0001726,3]
[402272939,1768641058852,-777.63,0.0001726,3]
[402272941,1768641058863,-500.0,0.0001726,3]
[402272943,1768641058872,-500.0,0.0001726,3]
[402272945,1768641058882,-686.85,0.0001726,3]
[402272947,1768641058892,-500.0,0.0001726,3]
[402272967,1768641059069,-847.18,0.0001726,3]
[402272970,1768641059093,-500.0,0.0001726,3]
[402272972,1768641059103,-500.0,0.0001726,3]
[402272974,1768641059113,-722.59,0.0001726,3]
[402272976,1768641059122,-1132.01,0.0001726,3]
[402272978,1768641059132,-500.0,0.0001726,3]
[402272980,1768641059141,-1199.96,0.0001726,3]
[402272982,1768641059150,-1526.12,0.0001726,3]
[402272984,1768641059160,-500.0,0.0001726,3]
[402272986,1768641059169,-500.0,0.0001726,3]
[402272988,1768641059178,-500.0,0.0001726,3]
[402272990,1768641059188,-791.73,0.0001726,3]
[402272992,1768641059196,-1719.9,0.0001726,3]
[402272994,1768641059206,-1851.83,0.0001726,3]
[402272996,1768641059216,-3788.27,0.0001726,3]
[402272998,1768641059225,-1294.45,0.0001726,3]
[402273000,1768641059234,-512.3,0.0001726,3]
[402273002,1768641059244,-500.0,0.0001726,3]
[402273004,1768641059253,-500.0,0.0001726,3]
[402273006,1768641059262,-500.0,0.0001726,3]
[402273008,1768641059271,-2020.66,0.0001726,3]
[402273010,1768641059280,-500.0,0.0001726,3]
[402273012,1768641059288,-1447.89,0.0001726,3]
[402273014,1768641059297,-500.0,0.0001726,3]
[402273016,1768641059307,-500.0,0.0001726,3]
[402273018,1768641059316,-1709.81,0.0001726,3]
[402273020,1768641059325,-500.0,0.0001726,3]
[402273022,1768641059335,-1140.43,0.0001726,3]
[402273024,1768641059345,-730.33,0.0001726,3]
[402273026,1768641059353,-633.14,0.0001726,3]
[402273028,1768641059363,-1090.41,0.0001726,3]
[402273030,1768641059372,-500.0,0.0001726,3]
[402273031,1768641059381,-500.0,0.0001726,3]
[402273033,1768641059390,-500.0,0.0001726,3]
[402273035,1768641059399,-2132.97,0.0001726,3]
[402273037,1768641059408,-514.45,0.0001726,3]
[402273039,1768641059418,-1102.58,0.0001726,3]
[402273041,1768641059427,-500.0,0.0001726,3]
[402273043,1768641059437,-1892.19,0.0001726,3]
[402273045,1768641059446,-1094.24,0.0001726,3]
[402273047,1768641059455,-500.0,0.0001726,3]
[402273049,1768641059464,-634.82538104,0.0001726,3]
[402273051,1768641059473,-931.54,0.0001726,3]
[402273053,1768641059483,-617.76,0.0001726,3]